fUST/lending_fUST_20250904
["ID","MTS","AMOUNT","RATE_DAILY","PERIOD"]
[383534470,1756977040444,-481.37399423,0.00013698,2]
[383534471,1756977040454,-480.0,0.00013698,2]
[383534472,1756977040463,-482.19805117,0.00013698,2]
[383534473,1756977040473,-480.0,0.00013698,2]
[383534474,1756977040482,-480.0,0.00013698,2]
[383534475,1756977040491,-482.43327518,0.00013698,2]
[383534476,1756977040501,-480.0,0.00013698,2]
[383534477,1756977040511,-480.0,0.00013698,2]
[383534478,1756977040521,-480.0,0.00013698,2]
[383534479,1756977040532,-480.0,0.00013698,2]
[383534480,1756977040542,-483.45054322,0.00013698,2]
[383534481,1756977040551,-480.83067366,0.00013698,2]
[383534482,1756977040560,-480.0,0.00013698,2]
[383534483,1756977040570,-480.0,0.00013698,2]
[383534484,1756977040579,-481.39652235,0.00013698,2]
[383534485,1756977040588,-481.6875904,0.00013698,2]
[383534486,1756977040598,-376.04591281,0.00013698,2]
[383534487,1756977040607,-480.0,0.00013698,2]
[383534488,1756977040616,-480.0,0.00013698,2]
[383534489,1756977040626,-569.86647669,0.00013698,2]
[383534490,1756977040636,-480.0,0.00013698,2]
[383534491,1756977040646,-487.84344408,0.00013698,2]
[383534492,1756977040656,-480.0,0.00013698,2]
[383534493,1756977040665,-480.0,0.00013698,2]
[383534494,1756977040676,-480.0,0.00013698,2]
[383534495,1756977040686,-480.0,0.00013698,2]
[383534496,1756977040696,-480.0,0.00013698,2]
[383534497,1756977040706,-480.0,0.00013698,2]
[383534498,1756977040716,-480.0,0.00013698,2]
[383534499,1756977040726,-482.55227607,0.00013698,2]
[383534500,1756977040735,-480.0,0.00013698,2]
[383534501,1756977040745,-379.82417701,0.00013698,2]
[383534502,1756977040755,-480.0,0.00013698,2]
[383534503,1756977040765,-483.62134403,0.00013698,2]
[383534504,1756977040775,-480.76498137,0.00013698,2]
[383534505,1756977040786,-481.81859762,0.00013698,2]
[383534506,1756977040796,-555.14525472,0.00013698,2]
[383534507,1756977040805,-480.0,0.00013698,2]
[383534508,1756977040816,-484.60683961,0.00013698,2]
[383534509,1756977040826,-480.0,0.00013698,2]
[383534510,1756977040836,-480.0,0.00013698,2]
[383534511,1756977040846,-480.0,0.00013698,2]
[383534512,1756977040857,-480.0,0.00013698,2]
[383534513,1756977040867,-480.0,0.00013698,2]
[383534514,1756977040877,-480.0,0.00013698,2]
[383534515,1756977040886,-480.0,0.00013698,2]
[383534516,1756977040896,-487.38778862,0.00013698,2]
[383534517,1756977040906,-480.0,0.00013698,2]
[383534518,1756977040915,-480.0,0.00013698,2]
[383534519,1756977040925,-483.47219465,0.00013698,2]
[383534520,1756977040936,-480.0,0.00013698,2]
[383534521,1756977040946,-480.0,0.00013698,2]
[383534522,1756977040956,-480.0,0.00013698,2]
[383534523,1756977040966,-480.0,0.00013698,2]
[383534524,1756977040976,-480.93392864,0.00013698,2]
[383534525,1756977040987,-480.0,0.00013698,2]
[383534526,1756977040996,-480.0,0.00013698,2]
[383534527,1756977041007,-482.3521632,0.00013698,2]
[383534528,1756977041017,-481.7629205,0.00013698,2]
[383534529,1756977041027,-480.0,0.00013698,2]
[383534530,1756977041037,-480.0,0.00013698,2]
[383534531,1756977041046,-483.63763648,0.00013698,2]
[383534532,1756977041056,-484.08661062,0.00013698,2]
[383534533,1756977041067,-480.0,0.00013698,2]
[383534534,1756977041077,-482.18253972,0.00013698,2]
[383534535,1756977041087,-522.72505487,0.00013698,2]
[383534536,1756977041097,-480.0,0.00013698,2]
[383534537,1756977041108,-480.39649784,0.00013698,2]
[383534538,1756977041118,-481.74702717,0.00013698,2]
[383534539,1756977041127,-480.0,0.00013698,2]
[383534540,1756977041137,-482.52326108,0.00013698,2]
[383534541,1756977041146,-482.6990918,0.00013698,2]
[383534542,1756977041156,-483.53023621,0.00013698,2]
[383534543,1756977041166,-161.63266964,0.00013698,2]
[383534544,1756977041342,-318.36733036,0.00013698,2]
[383534545,1756977041457,-480.0,0.00013698,2]
[383534546,1756977041469,-357.13960665,0.00013698,2]
[383534547,1756977041481,-122.86039335,0.00013698,2]
[383534548,1756977041491,-482.72244912,0.00013698,2]
[383534549,1756977041501,-480.32021663,0.00013698,2]
[383534550,1756977041510,-480.0,0.00013698,2]
[383534551,1756977041519,-480.0,0.00013698,2]
[383534552,1756977041529,-481.76252689,0.00013698,2]
[383534553,1756977041538,-480.0,0.00013698,2]
[383534554,1756977041547,-480.0,0.00013698,2]
[383534555,1756977041556,-342.21221025,0.00013698,2]
[383534556,1756977041818,-137.78778975,0.00013698,2]
[383534557,1756977041828,-358.64817849,0.00013698,2]
[383534558,1756977041916,-141.35182151,0.00013698,2]
[383534559,1756977041926,-500.0,0.00013698,2]
[383534560,1756977041937,-500.0,0.00013698,2]
[383534561,1756977041947,-500.0,0.00013698,2]
[383534562,1756977041957,-480.0,0.00013698,2]
[383534563,1756977041968,-504.21865693,0.00013698,2]
[383534564,1756977041978,-480.0,0.00013698,2]
[383534565,1756977041988,-480.0,0.00013698,2]
[383534566,1756977041998,-480.0,0.00013698,2]
[383534567,1756977042010,-606.47635077,0.00013698,2]
[383534568,1756977042020,-480.0,0.00013698,2]
[383534569,1756977042030,-480.0,0.00013698,2]
[383534570,1756977042039,-480.0,0.00013698,2]
[383534571,1756977042049,-480.0,0.00013698,2]
[383534572,1756977042060,-480.0,0.00013698,2]
[383534573,1756977042069,-480.0,0.00013698,2]
[383534574,1756977042080,-480.0,0.00013698,2]
[383534575,1756977042091,-482.11160154,0.00013698,2]
[383534576,1756977042100,-482.26103364,0.00013698,2]
[383534577,1756977042121,-480.0,0.00013698,2]
[383534579,1756977042134,-481.43729307,0.00013698,2]
[383534580,1756977042147,-480.0,0.00013698,2]
[383534581,1756977042159,-480.0,0.00013698,2]
[383534582,1756977042170,-482.04164454,0.00013698,2]
[383534583,1756977042181,-480.0,0.00013698,2]
[383534584,1756977042192,-482.28869188,0.00013698,2]
[383534585,1756977042203,-480.0,0.00013698,2]
[383534586,1756977042213,-480.0,0.00013698,2]
[383534587,1756977042225,-590.98,0.00013698,2]
[383534588,1756977042237,-480.0,0.00013698,2]
[383534589,1756977042249,-480.0,0.00013698,2]
[383534590,1756977042260,-480.0,0.00013698,2]
[383534591,1756977042271,-480.79960668,0.00013698,2]
[383534592,1756977042285,-480.0,0.00013698,2]
[383534593,1756977042296,-480.0,0.00013698,2]
[383534594,1756977042312,-480.0,0.00013698,2]
[383534595,1756977042324,-480.0,0.00013698,2]
[383534596,1756977042336,-480.0,0.00013698,2]
[383534598,1756977042347,-322.09736596,0.00013698,2]
[383534599,1756977042361,-159.7263746,0.00013698,2]
[383534600,1756977042373,-480.0,0.00013698,2]
[383534601,1756977042385,-480.0,0.00013698,2]
[383534602,1756977042397,-482.24117586,0.00013698,2]
[383534603,1756977042407,-480.0,0.00013698,2]
[383534604,1756977042421,-482.2787016,0.00013698,2]
[383534605,1756977042433,-481.23899459,0.00013698,2]
[383534606,1756977042444,-480.0,0.00013698,2]
[383534607,1756977042454,-481.80446375,0.00013698,2]
[383534608,1756977042464,-480.0,0.00013698,2]
[383534609,1756977042475,-564.57017317,0.00013698,2]
[383534610,1756977042485,-480.0,0.00013698,2]
[383534611,1756977042495,-482.44458543,0.00013698,2]
[383534612,1756977042505,-480.0,0.00013698,2]
[383534613,1756977042515,-482.36534579,0.00013698,2]
[383534614,1756977042525,-292.85410527,0.00013698,2]
[383534615,1756977042535,-481.73129816,0.00013698,2]
[383534616,1756977042547,-480.0,0.00013698,2]
[383534617,1756977042558,-627.92,0.00013698,2]
[383534618,1756977042568,-480.0,0.00013698,2]
[383534619,1756977042579,-480.0,0.00013698,2]
[383534620,1756977042589,-595.15,0.00013698,2]
[383534621,1756977042601,-480.0,0.00013698,2]
[383534622,1756977042611,-480.0,0.00013698,2]
[383534623,1756977042622,-486.99844267,0.00013698,2]
[383534624,1756977042632,-480.0,0.00013698,2]
[383534625,1756977042643,-480.0,0.00013698,2]
[383534626,1756977042653,-463.17970541,0.00013698,2]
[383534627,1756977042663,-480.0,0.00013698,2]
[383534628,1756977042673,-480.0,0.00013698,2]
[383534629,1756977042684,-482.37368218,0.00013698,2]
[383534631,1756977042694,-58.24686837,0.00013698,2]
[383534632,1756977042707,-423.00991756,0.00013698,2]
[383534633,1756977042716,-480.0,0.00013698,2]
[383534634,1756977042726,-482.51143571,0.00013698,2]
[383534635,1756977042736,-480.0,0.00013698,2]
[383534636,1756977042746,-480.0,0.00013698,2]
[383534637,1756977042756,-480.0,0.00013698,2]
[383534638,1756977042766,-481.89453757,0.00013698,2]
[383534639,1756977042775,-480.0,0.00013698,2]
[383534640,1756977042785,-908.99,0.00013698,2]
[383534641,1756977042796,-523.35,0.00013698,2]
[383534642,1756977042806,-480.0,0.00013698,2]
[383534643,1756977042816,-482.80682231,0.00013698,2]
[383534644,1756977042826,-480.0,0.00013698,2]
[383534645,1756977042836,-483.05182505,0.00013698,2]
[383534646,1756977042846,-469.24731808,0.00013698,2]
[383534647,1756977042856,-481.88681533,0.00013698,2]
[383534648,1756977042865,-382.00726471,0.00013698,2]
[383534649,1756977042875,-480.0,0.00013698,2]
[383534650,1756977042885,-481.95503117,0.00013698,2]
[383534651,1756977042896,-625.87,0.00013698,2]
[383534652,1756977042905,-480.0,0.00013698,2]
[383534653,1756977042915,-480.0,0.00013698,2]
[383534655,1756977042924,-482.72585579,0.00013698,2]
[383534656,1756977042934,-480.0,0.00013698,2]
[383534657,1756977042944,-480.0,0.00013698,2]
[383534658,1756977042953,-480.0,0.00013698,2]
[383534659,1756977042963,-480.0,0.00013698,2]
[383534660,1756977042972,-481.56565846,0.00013698,2]
[383534661,1756977042982,-534.85,0.00013698,2]
[383534662,1756977042992,-534.54680004,0.00013698,2]
[383534663,1756977043002,-480.0,0.00013698,2]
[383534664,1756977043012,-497.17,0.00013698,2]
[383534665,1756977043022,-480.0,0.00013698,2]
[383534666,1756977043032,-627.85185061,0.00013698,2]
[383534667,1756977043043,-418.43007453,0.00013698,2]
[383534668,1756977043056,-480.0,0.00013698,2]
[383534669,1756977043066,-480.0,0.00013698,2]
[383534670,1756977043076,-480.0,0.00013698,2]
[383534671,1756977043086,-480.0,0.00013698,2]
[383534672,1756977043096,-480.0,0.00013698,2]
[383534673,1756977043107,-1465.09,0.00013698,2]
[383534674,1756977043117,-480.0,0.00013698,2]
[383534675,1756977043126,-480.0,0.00013698,2]
[383534676,1756977043136,-480.0,0.00013698,2]
[383534677,1756977043145,-484.16146087,0.00013698,2]
[383534678,1756977043155,-483.44132887,0.00013698,2]
[383534679,1756977043165,-577.57189696,0.00013698,2]
[383534680,1756977043176,-480.0,0.00013698,2]
[383534681,1756977043185,-481.8242202,0.00013698,2]
[383534682,1756977043196,-1210.27,0.00013698,2]
[383534683,1756977043207,-483.77561646,0.00013698,2]
[383534684,1756977043217,-480.0,0.00013698,2]
[383534685,1756977043227,-480.0,0.00013698,2]
[383534686,1756977043237,-480.0,0.00013698,2]
[383534687,1756977043248,-558.72,0.00013698,2]
[383534688,1756977043258,-480.0,0.00013698,2]
[383534689,1756977043268,-261.88533612,0.00013698,2]
[383534690,1756977043282,-106.42466388,0.00013698,2]
[383534691,1756977043292,-480.0,0.00013698,2]
[383534692,1756977043302,-85.35470447,0.00013698,2]
[383534693,1756977043679,-11620.444817,0.00013617,2]
[383534694,1756977043691,-2087.82777826,0.00013617,2]
[383534695,1756977043708,-1384.257172,0.00013617,2]
[383534696,1756977046050,-376.68,0.00013617,2]
[383534697,1756977046106,-34530.79023274,0.00013617,2]
[383534698,1756977046116,-396.93609653,0.00013698,2]
[383534699,1756977046126,-1588.89,0.00013698,2]
[383534700,1756977046135,-480.0,0.00013698,2]
[383534701,1756977046145,-481.47,0.00013698,2]
[383534702,1756977046154,-480.0,0.00013698,2]
[383534703,1756977046163,-480.0,0.00013698,2]
[383534704,1756977046173,-480.0,0.00013698,2]
[383534705,1756977046183,-483.39906272,0.00013698,2]
[383534706,1756977046192,-480.0,0.00013698,2]
[383534707,1756977046202,-480.0,0.00013698,2]
[383534708,1756977046211,-480.0,0.00013698,2]
[383534709,1756977046221,-480.0,0.00013698,2]
[383534710,1756977046231,-481.55012209,0.00013698,2]
[383534711,1756977046240,-480.0,0.00013698,2]
[383534712,1756977046249,-560.76,0.00013698,2]
[383534713,1756977046258,-483.54077908,0.00013698,2]
[383534714,1756977046268,-484.56501107,0.00013698,2]
[383534715,1756977046277,-480.0,0.00013698,2]
[383534716,1756977046286,-481.14993866,0.00013698,2]
[383534717,1756977046295,-579.72,0.00013698,2]
[383534718,1756977046307,-216.28155543,0.00013698,2]
[383534719,1756977046317,-480.0,0.00013698,2]
[383534720,1756977046327,-480.0,0.00013698,2]
[383534721,1756977046336,-416.39348944,0.00013698,2]
[383534722,1756977046347,-480.0,0.00013698,2]
[383534723,1756977046357,-480.0,0.00013698,2]
[383534724,1756977046366,-366.33291508,0.00013698,2]
[383534725,1756977046375,-484.68984074,0.00013698,2]
[383534726,1756977046386,-480.0,0.00013698,2]
[383534727,1756977046395,-480.0,0.00013698,2]
[383534728,1756977046404,-480.0,0.00013698,2]
[383534729,1756977046414,-1265.94,0.00013698,2]
[383534730,1756977046427,-480.0,0.00013698,2]
[383534731,1756977046437,-482.63159601,0.00013698,2]
[383534732,1756977046447,-1263.84,0.00013698,2]
[383534733,1756977046456,-480.0,0.00013698,2]
[383534734,1756977046466,-480.0,0.00013698,2]
[383534735,1756977046475,-1728.71,0.00013698,2]
[383534736,1756977046484,-480.0,0.00013698,2]
[383534737,1756977046494,-480.0,0.00013698,2]
[383534738,1756977046503,-567.61,0.00013698,2]
[383534739,1756977046512,-480.0,0.00013698,2]
[383534740,1756977046522,-480.0,0.00013698,2]
[383534741,1756977046531,-482.29385917,0.00013698,2]
[383534742,1756977046541,-480.0,0.00013698,2]
[383534743,1756977046550,-481.87122457,0.00013698,2]
[383534744,1756977046560,-370.86552113,0.00013698,2]
[383534745,1756977046570,-482.1729571,0.00013698,2]
[383534746,1756977046580,-480.0,0.00013698,2]
[383534747,1756977046589,-480.0,0.00013698,2]
[383534748,1756977046599,-480.0,0.00013698,2]
[383534749,1756977046608,-1282.84,0.00013698,2]
[383534750,1756977046617,-481.86411891,0.00013698,2]
[383534751,1756977046626,-480.0,0.00013698,2]
[383534752,1756977046635,-480.0,0.00013698,2]
[383534753,1756977046645,-480.0,0.00013698,2]
[383534754,1756977046654,-514.40738303,0.00013698,2]
[383534755,1756977046663,-464.35662721,0.00013698,2]
[383534756,1756977046673,-525.88,0.00013698,2]
[383534757,1756977046682,-482.6484155,0.00013698,2]
[383534758,1756977046692,-482.74601989,0.00013698,2]
[383534759,1756977046702,-480.0,0.00013698,2]
[383534760,1756977046711,-480.0,0.00013698,2]
[383534761,1756977046721,-481.03524066,0.00013698,2]
[383534762,1756977046730,-480.0,0.00013698,2]
[383534763,1756977046739,-1916.73,0.00013698,2]
[383534764,1756977046749,-480.0,0.00013698,2]
[383534765,1756977046758,-480.0,0.00013698,2]
[383534766,1756977046767,-482.01181358,0.00013698,2]
[383534767,1756977046777,-482.15,0.00013698,2]
[383534768,1756977046786,-480.30159909,0.00013698,2]
[383534769,1756977046795,-480.0,0.00013698,2]
[383534770,1756977046805,-426.52344864,0.00013698,2]
[383534771,1756977046815,-481.8041731,0.00013698,2]
[383534772,1756977046828,-480.0,0.00013698,2]
[383534773,1756977046838,-465.68468128,0.00013698,2]
[383534774,1756977046848,-480.0,0.00013698,2]
[383534775,1756977046857,-481.52083451,0.00013698,2]
[383534776,1756977046867,-481.79699464,0.00013698,2]
[383534777,1756977046876,-482.84870026,0.00013698,2]
[383534778,1756977046885,-480.0,0.00013698,2]
[383534779,1756977046894,-571.08609934,0.00013698,2]
[383534780,1756977046903,-480.0,0.00013698,2]
[383534781,1756977046912,-482.13522912,0.00013698,2]
[383534782,1756977046922,-480.0,0.00013698,2]
[383534783,1756977046931,-819.37,0.00013698,2]
[383534784,1756977046940,-480.0,0.00013698,2]
[383534785,1756977046950,-480.0,0.00013698,2]
[383534786,1756977046959,-480.85166486,0.00013698,2]
[383534787,1756977046968,-480.0,0.00013698,2]
[383534788,1756977046977,-480.0,0.00013698,2]
[383534789,1756977046986,-482.26866662,0.00013698,2]
[383534790,1756977046995,-480.0,0.00013698,2]
[383534791,1756977047005,-480.0,0.00013698,2]
[383534792,1756977047014,-480.0,0.00013698,2]
[383534793,1756977047023,-481.37571054,0.00013698,2]
[383534794,1756977047033,-481.18449225,0.00013698,2]
[383534795,1756977047042,-481.25063008,0.00013698,2]
[383534796,1756977047052,-481.24223576,0.00013698,2]
[383534797,1756977047061,-480.0,0.00013698,2]
[383534798,1756977047071,-481.40179665,0.00013698,2]
[383534799,1756977047081,-1467.01,0.00013698,2]
[383534800,1756977047091,-480.0,0.00013698,2]
[383534801,1756977047100,-480.0,0.00013698,2]
[383534802,1756977047109,-480.0,0.00013698,2]
[383534803,1756977047118,-480.0,0.00013698,2]
[383534804,1756977047128,-480.0,0.00013698,2]
[383534805,1756977047137,-480.0,0.00013698,2]
[383534806,1756977047146,-480.0,0.00013698,2]
[383534807,1756977047156,-480.0,0.00013698,2]
[383534808,1756977047166,-2068.59,0.00013698,2]
[383534809,1756977047176,-480.0,0.00013698,2]
[383534810,1756977047185,-480.0,0.00013698,2]
[383534811,1756977047194,-497.50129657,0.00013698,2]
[383534812,1756977047203,-480.0,0.00013698,2]
[383534813,1756977047214,-480.0,0.00013698,2]
[383534814,1756977047223,-481.70413768,0.00013698,2]
[383534815,1756977047235,-480.0,0.00013698,2]
[383534816,1756977047244,-480.0,0.00013698,2]
[383534817,1756977047253,-3857.14,0.00013698,2]
[383534818,1756977047262,-481.61929694,0.00013698,2]
[383534819,1756977047273,-480.0,0.00013698,2]
[383534820,1756977047282,-857.69,0.00013698,2]
[383534821,1756977047292,-592.1,0.00013698,2]
[383534822,1756977047301,-480.0,0.00013698,2]
[383534823,1756977047312,-481.92878269,0.00013698,2]
[383534824,1756977047321,-480.0,0.00013698,2]
[383534825,1756977047331,-480.0,0.00013698,2]
[383534826,1756977047340,-483.1221486,0.00013698,2]
[383534827,1756977047349,-482.46448473,0.00013698,2]
[383534828,1756977047359,-480.0,0.00013698,2]
[383534829,1756977047368,-627.96,0.00013698,2]
[383534830,1756977047377,-1141.13,0.00013698,2]
[383534831,1756977047386,-480.32427565,0.00013698,2]
[383534832,1756977047395,-480.0,0.00013698,2]
[383534833,1756977047404,-480.0,0.00013698,2]
[383534834,1756977047413,-495.12,0.00013698,2]
[383534835,1756977047424,-482.05875497,0.00013698,2]
[383534836,1756977047433,-480.0,0.00013698,2]
[383534837,1756977047442,-519.09,0.00013698,2]
[383534838,1756977047452,-480.0,0.00013698,2]
[383534839,1756977047461,-480.0,0.00013698,2]
[383534840,1756977047470,-480.0,0.00013698,2]
[383534841,1756977047481,-480.0,0.00013698,2]
[383534842,1756977047490,-480.0,0.00013698,2]
[383534843,1756977047499,-481.33196304,0.00013698,2]
[383534844,1756977047509,-481.46914896,0.00013698,2]
[383534845,1756977047518,-480.0,0.00013698,2]
[383534846,1756977047527,-480.0,0.00013698,2]
[383534847,1756977047536,-480.95506669,0.00013698,2]
[383534848,1756977047545,-480.0,0.00013698,2]
[383534849,1756977047554,-536.2,0.00013698,2]
[383534850,1756977047564,-482.63586061,0.00013698,2]
[383534851,1756977047574,-2302.87,0.00013698,2]
[383534852,1756977047583,-480.0,0.00013698,2]
[383534853,1756977047593,-480.0,0.00013698,2]
[383534854,1756977047603,-482.23773546,0.00013698,2]
[383534855,1756977047612,-480.0,0.00013698,2]
[383534856,1756977047621,-480.0,0.00013698,2]
[383534857,1756977047631,-1855.58,0.00013698,2]
[383534858,1756977047640,-475.22,0.00013698,2]
[383534859,1756977047649,-480.0,0.00013698,2]
[383534860,1756977047659,-524.31,0.00013698,2]
[383534861,1756977047669,-480.0,0.00013698,2]
[383534862,1756977047679,-484.17643052,0.00013698,2]
[383534863,1756977047688,-598.59999398,0.00013698,2]
[383534864,1756977047697,-483.29082354,0.00013698,2]
[383534865,1756977047794,-480.0,0.00013698,2]
[383534866,1756977047804,-483.11871313,0.00013698,2]
[383534867,1756977047813,-527.31995982,0.00013698,2]
[383534868,1756977047822,-480.0,0.00013698,2]
[383534869,1756977047830,-480.0,0.00013698,2]
[383534870,1756977047842,-480.0,0.00013698,2]
[383534871,1756977047851,-987.32,0.00013698,2]
[383534872,1756977047860,-850.07,0.00013698,2]
[383534873,1756977047869,-480.0,0.00013698,2]
[383534874,1756977047878,-411.70187014,0.00013698,2]
[383534875,1756977047888,-482.75179994,0.00013698,2]
[383534876,1756977047897,-500.0,0.00013699,2]
[383534877,1756977047906,-858.290148,0.00013699,2]
[383534878,1756977047915,-915.65361,0.00013699,2]
[383534879,1756977047924,-151.0,0.00013738,2]
[383534880,1756977047934,-151.0,0.00013738,2]
[383534881,1756977047943,-151.0,0.00013738,2]
[383534882,1756977047952,-151.0,0.00013738,2]
[383534883,1756977047961,-247.873745,0.00013738,2]
[383534884,1756977047971,-247.873745,0.00013738,2]
[383534885,1756977047980,-247.873745,0.00013738,2]
[383534886,1756977047989,-151.0,0.00013738,2]
[383534887,1756977047999,-151.0,0.00013738,2]
[383534888,1756977048010,-247.873745,0.00013738,2]
[383534889,1756977048019,-151.0,0.00013738,2]
[383534890,1756977048028,-151.501553,0.00013738,2]
[383534891,1756977048039,-151.0,0.00013738,2]
[383534892,1756977048050,-151.0,0.00013738,2]
[383534893,1756977048059,-151.0,0.00013738,2]
[383534894,1756977048069,-151.0,0.00013738,2]
[383534895,1756977048078,-1731.0,0.00013738,2]
[383534896,1756977048087,-1731.0,0.00013738,2]
[383534897,1756977048097,-1731.0,0.00013738,2]
[383534898,1756977048107,-1731.0,0.00013738,2]
[383534899,1756977048116,-1731.0,0.00013738,2]
[383534900,1756977048126,-1731.0,0.00013738,2]
[383534901,1756977048135,-1731.0,0.00013738,2]
[383534902,1756977048143,-1731.0,0.00013738,2]
[383534903,1756977048153,-1731.0,0.00013738,2]
[383534904,1756977048162,-1731.0,0.00013738,2]
[383534905,1756977048171,-1745.14770342,0.00013738,2]
[383534906,1756977048181,-1731.0,0.00013738,2]
[383534907,1756977048191,-1731.0,0.00013738,2]
[383534908,1756977048200,-1731.0,0.00013738,2]
[383534909,1756977048210,-530.40833076,0.0001377,2]
[383534910,1756977048219,-160.0,0.0001377,2]
[383534911,1756977048229,-160.0,0.0001377,2]
[383534912,1756977048240,-260.41666667,0.0001377,2]
[383534913,1756977048249,-232.93421481,0.0001377,2]
[383534914,1756977048259,-217.5338025,0.0001377,2]
[383534915,1756977048269,-417.15472785,0.0001377,2]
[383534916,1756977048278,-846.4110323,0.0001377,2]
[383534917,1756977048287,-160.0,0.0001377,2]
[383534918,1756977048297,-160.0,0.0001377,2]
[383534919,1756977048309,-160.0,0.0001377,2]
[383534920,1756977048318,-160.0,0.00013771,2]
[383534921,1756977048327,-160.0,0.00013771,2]
[383534922,1756977048338,-477.7,0.0001389,2]
[383534923,1756977048347,-498.29320129,0.000139,2]
[383534924,1756977048358,-168.0,0.0001394,2]
[383534925,1756977048367,-151.0,0.0001395,2]
[383534926,1756977048377,-151.0,0.0001395,2]
[383534927,1756977048387,-151.0,0.0001395,2]
[383534928,1756977048397,-152.90352033,0.0001395,2]
[383534929,1756977048407,-151.0,0.0001395,2]
[383534930,1756977048416,-151.0,0.0001395,2]
[383534931,1756977048426,-151.0,0.0001395,2]
[383534932,1756977048435,-151.0,0.0001395,2]
[383534933,1756977048445,-500.0,0.0001395,2]
[383534934,1756977048455,-500.0,0.0001395,2]
[383534935,1756977048465,-151.0,0.0001395,2]
[383534936,1756977048474,-151.0,0.0001395,2]
[383534937,1756977048485,-151.0,0.0001395,2]
[383534938,1756977048494,-500.0,0.0001395,2]
[383534939,1756977048504,-151.0,0.0001395,2]
[383534940,1756977048514,-500.0,0.0001395,2]
[383534941,1756977048523,-151.12725769,0.0001395,2]
[383534942,1756977048533,-151.0,0.0001395,2]
[383534943,1756977048542,-151.0,0.0001395,2]
[383534944,1756977048551,-151.0,0.0001395,2]
[383534945,1756977048561,-151.0,0.0001395,2]
[383534946,1756977048571,-151.0,0.0001395,2]
[383534947,1756977048580,-500.0,0.0001395,2]
[383534948,1756977048590,-151.0,0.0001395,2]
[383534949,1756977048599,-151.0,0.0001395,2]
[383534950,1756977048609,-151.0,0.0001395,2]
[383534951,1756977048619,-151.0,0.0001395,2]
[383534952,1756977048629,-151.0,0.0001395,2]
[383534953,1756977048639,-151.0,0.0001395,2]
[383534954,1756977048648,-500.0,0.0001395,2]
[383534955,1756977048657,-151.21069855,0.0001395,2]
[383534956,1756977048666,-151.0,0.0001395,2]
[383534957,1756977048675,-500.0,0.0001395,2]
[383534958,1756977048685,-151.0,0.0001395,2]
[383534959,1756977048696,-151.0,0.0001395,2]
[383534960,1756977048706,-152.37487777,0.0001395,2]
[383534961,1756977048715,-151.0,0.0001395,2]
[383534962,1756977048725,-151.72702327,0.0001395,2]
[383534963,1756977048734,-471.0,0.0001395,2]
[383534964,1756977048745,-151.0,0.0001395,2]
[383534965,1756977048754,-151.0,0.0001395,2]
[383534966,1756977048763,-151.0,0.0001395,2]
[383534967,1756977048773,-151.0,0.0001395,2]
[383534968,1756977048782,-151.0,0.0001395,2]
[383534969,1756977048792,-226.917784,0.0001395,2]
[383534970,1756977048803,-608.12009214,0.00013972,2]
[383534971,1756977048812,-480.0,0.00013972,2]
[383534972,1756977048821,-480.0,0.00013972,2]
[383534973,1756977048831,-480.0,0.00013972,2]